bitfinex-derivatives/quotes_ETHF0:USTF0_20250804
["timestamp","ask_amount","ask_price","bid_price","bid_amount"]
[1754311917413,0.15307,3567.4,3567.3,1.7758]
[1754311918111,19.117,3567.5,3567.4,1.07009]
[1754311918409,1.3129,3568.0,3567.9,2.33631]
[1754311918610,20.5793236,3568.0,3567.9,2.33631]
[1754311919015,20.4289,3568.0,3567.9,2.33631]
[1754311919214,1.0,3568.0,3567.9,2.33631]
[1754311919412,20.116,3568.0,3567.9,2.33631]
[1754311919717,21.593,3568.0,3567.9,2.33631]
[1754311920914,21.2865,3568.0,3567.9,2.33631]
[1754311921618,20.4289,3568.0,3567.9,2.33631]
[1754311921915,1.0,3568.0,3567.9,2.33631]
[1754311922411,20.115,3568.0,3567.9,2.33631]
[1754311923218,21.592,3568.0,3567.9,2.33631]
[1754311923611,20.115,3568.0,3567.9,2.33631]
[1754311925117,20.4279,3568.0,3567.9,2.33631]
[1754311925420,21.592,3568.0,3567.9,2.33631]
[1754311926205,21.592,3568.0,3567.9,0.3032]
[1754311926412,1.477,3567.7,3567.6,2.33636]
[1754311926612,20.597,3567.7,3567.6,2.33636]
[1754311928818,1.477,3567.3,3567.2,4.3806]
[1754311929017,0.56052,3567.9,3567.8,0.56053]
[1754311929222,20.597,3567.9,3567.8,1.1728]
[1754311929420,20.597,3567.9,3567.8,1.7758]
[1754311930621,20.597,3567.9,3567.8,1.3114]
[1754311930817,1.0,3568.0,3567.9,1.7931]
[1754311931021,1.7579,3568.0,3567.9,1.7931]
[1754311931222,1.9518,3568.0,3567.9,1.7931]
[1754311931420,1.4841,3568.0,3567.9,1.7931]
[1754311931721,2.466,3568.0,3567.9,1.7931]
[1754311932228,21.635,3568.0,3567.9,1.7931]
[1754311932620,1.2902,3568.0,3567.9,1.7931]
[1754311932817,3.2078,3568.6,3567.9,1.7931]
[1754311933124,1.40075,3569.3,3567.5,2.80284]
[1754311933125,4.6738,3569.1,3569.0,1.67434]
[1754311933326,4.6738,3569.1,3569.0,1.80674]
[1754311933520,23.3566,3569.1,3569.0,1.80674]
[1754311933722,23.87143174,3569.1,3569.0,1.80674]
[1754311934526,4.67443174,3569.1,3569.0,1.80674]
[1754311934731,19.71283174,3569.1,3569.0,1.80674]
[1754311934919,0.51483174,3569.1,3569.0,1.80674]
[1754311935316,2.13353174,3569.1,3569.0,1.59134]
[1754311935519,0.99893174,3569.1,3569.0,1.67434]
[1754311935718,1.98083174,3569.1,3569.0,1.67434]
[1754311936027,1.98083174,3569.1,3569.0,1.59134]
[1754311936426,21.18483174,3569.1,3569.0,1.59134]
[1754311936626,19.71883174,3569.1,3569.0,1.80674]
[1754311936828,20.87473174,3569.1,3569.0,1.67434]
[1754311937028,21.18483174,3569.1,3569.0,1.67434]
[1754311937427,21.18483174,3569.1,3569.0,1.80674]
[1754311937626,0.80503174,3569.1,3569.0,1.80674]
[1754311937928,20.01803174,3569.1,3569.0,1.80674]
[1754311938132,21.19383174,3569.1,3569.0,1.80674]
[1754311938323,21.19383174,3569.1,3569.0,1.67434]
[1754311938723,1.74e-06,3569.1,3569.0,1.80674]
[1754311939029,41.1398,3569.9,3569.8,1.67422]
[1754311939221,60.3738,3569.9,3569.8,1.67422]
[1754311939419,41.1398,3569.9,3569.8,1.67422]
[1754311940019,60.3718,3569.9,3569.8,1.67422]
[1754311940427,60.0617,3569.9,3569.8,1.80662]
[1754311940628,60.3718,3569.9,3569.8,1.80662]
[1754311940822,3.2078,3570.0,3569.8,1.80662]
[1754311941030,0.4677,3569.9,3569.8,0.56022]
[1754311941231,0.5507,3569.8,3569.4,0.3204]
[1754311941430,0.8409,3569.8,3569.7,0.56022]
[1754311941923,1.6187,3569.8,3569.7,0.56022]
[1754311942128,1.466,3569.8,3569.7,1.59122]
[1754311942327,1.466,3569.8,3569.7,1.80662]
[1754311942730,1.2619,3569.8,3569.7,1.80662]
[1754311942936,19.5602,3569.8,3569.7,1.80662]
[1754311943132,0.1527,3570.5,3569.7,1.80662]
[1754311943133,4.6738,3570.6,3570.5,1.031]
[1754311943339,23.9738,3570.6,3570.5,1.031]
[1754311943636,23.9728,3570.6,3570.5,1.031]
[1754311944234,3.2078,3570.6,3570.5,1.2464]
[1754311944438,3.498,3570.6,3570.5,1.2464]
[1754311944637,3.9657,3570.6,3570.5,1.2464]
[1754311945028,4.1596,3570.6,3570.5,1.2464]
[1754311945233,4.3637,3570.6,3570.5,1.2464]
[1754311945436,4.6738,3570.6,3570.5,1.2464]
[1754311945640,23.2617,3570.6,3569.9,0.6145]
[1754311945938,1.6187,3570.5,3570.4,0.88051]
[1754311946137,1.6187,3570.5,3570.4,0.3204]
[1754311946337,1.4022,3570.5,3570.4,0.3204]
[1754311946538,1.4434,3570.5,3570.4,0.3204]
[1754311946740,1.4434,3570.5,3570.4,1.031]
[1754311947438,20.0529,3570.5,3570.4,1.2464]
[1754311947838,0.7579,3570.5,3570.4,1.2464]
[1754311948039,19.5832,3570.5,3570.4,1.2464]
[1754311948229,19.5812,3570.5,3570.4,1.2464]
[1754311948429,20.253,3570.5,3570.4,1.031]
[1754311948629,20.6112,3570.5,3570.4,1.031]
[1754311949941,20.6112,3570.5,3570.4,0.3204]
[1754311950136,20.7413,3570.5,3570.4,0.3204]
[1754311950638,20.6112,3570.5,3570.4,0.3204]
[1754311950839,20.6112,3570.5,3570.4,0.6145]
[1754311951029,0.56012,3570.4,3570.3,0.56013]
[1754311951233,1.3202,3570.3,3570.2,0.88054]
[1754311951433,1.4503,3570.3,3570.2,0.56014]
[1754311951638,1.4503,3570.3,3570.2,0.88054]
[1754311951938,1.3202,3569.9,3569.8,1.59122]
[1754311952143,20.6052,3569.9,3569.8,0.5295]
[1754311952340,20.7353,3569.9,3569.8,0.3204]
[1754311953434,3.2078,3570.2,3570.0,0.3204]
[1754311953641,20.6112,3570.1,3570.0,1.38007]
[1754311954236,20.6112,3570.1,3570.0,1.38207]
[1754311954435,20.53938,3570.1,3569.9,0.56019]
[1754311954641,1.286,3570.0,3569.9,0.88059]
[1754311954844,1.3202,3570.0,3569.9,1.59119]
[1754311955140,1.3202,3570.0,3569.9,1.29709]
[1754311955338,1.3202,3570.0,3569.9,0.88059]
[1754311955732,1.4503,3570.0,3569.9,0.88059]
[1754311956844,1.4503,3570.0,3569.9,1.17469]
[1754311957346,1.4503,3570.0,3569.9,0.6145]
[1754311957541,1.4503,3570.0,3569.9,0.3204]
[1754311957839,2.01055,3569.7,3569.6,0.3204]
[1754311958045,1.3202,3569.4,3569.3,1.031]
[1754311958344,20.7653,3569.4,3569.3,0.3204]
[1754311958545,0.2902,3569.0,3568.9,3.5282]
[1754311958743,20.6342,3569.0,3568.9,4.79916]
[1754311959040,21.19454,3569.0,3568.9,4.3218]
[1754311959244,21.19454,3569.0,3568.9,1.031]
[1754311959438,20.6342,3569.0,3568.9,1.031]
[1754311959844,1.3202,3568.7,3568.6,0.5295]
[1754311960041,20.6362,3568.7,3568.6,0.5295]
[1754311960344,20.7663,3568.7,3568.6,0.5295]
[1754311961045,20.7663,3568.7,3568.4,4.07433]
[1754311961046,0.7032,3568.5,3568.4,3.2078]
[1754311961343,1.3386,3568.1,3568.0,0.7993]
[1754311961544,0.8673,3567.8,3567.7,0.1958]
[1754311961744,20.6626,3567.8,3567.7,0.9971]
[1754311962548,20.7927,3567.8,3567.7,0.2974]
[1754311963239,20.7927,3567.8,3567.7,0.7993]
[1754311963743,20.6626,3567.8,3567.7,0.9971]
[1754311965542,20.6626,3567.8,3567.0,3.2078]
[1754311965543,0.293,3568.1,3568.0,0.69299]
[1754311965741,19.611,3568.1,3568.0,0.5261]
[1754311965936,20.0823,3568.1,3568.0,0.5261]
[1754311966141,20.6566,3568.1,3568.0,1.2124]
[1754311966845,20.6566,3568.1,3568.0,0.9971]
[1754311967040,20.6566,3568.1,3568.0,0.2974]
[1754311967237,20.7867,3568.1,3567.8,0.56052]
[1754311967441,0.7032,3567.9,3567.8,0.5019]
[1754311967642,20.6536,3567.9,3567.8,0.9971]
[1754311968642,20.7837,3567.9,3567.8,0.2974]
[1754311970249,20.6536,3567.9,3567.8,0.9971]
[1754311970446,20.4895,3567.9,3567.8,1.2124]
[1754311970843,20.6536,3567.9,3567.8,1.2124]
[1754311971050,20.6536,3567.9,3567.8,0.9971]
[1754311972049,20.4905,3567.9,3567.8,0.7825]
[1754311972443,1.3386,3567.9,3567.8,0.915]
[1754311972643,20.6526,3567.9,3567.8,1.2124]
[1754311973147,1.3386,3567.9,3567.8,1.2124]
[1754311973355,20.0763,3567.9,3567.8,1.2124]
[1754311973649,0.293,3567.9,3567.8,1.2124]
[1754311973949,19.309,3567.9,3567.8,1.77293]
[1754311975453,0.293,3568.4,3568.3,1.77285]
[1754311975653,20.0733,3568.4,3568.3,1.77285]
[1754311976047,20.275,3568.4,3568.3,1.77285]
[1754311976246,20.4835,3568.4,3568.3,1.77285]
[1754311976455,3.2078,3569.0,3568.6,0.7993]
[1754311976649,4.0751,3569.0,3568.9,0.9971]
[1754311976847,23.3841,3569.0,3568.9,0.9971]
[1754311977043,23.8554,3569.0,3568.9,0.9971]
[1754311977249,23.8554,3569.0,3568.9,1.0799]
[1754311977550,23.8554,3569.0,3568.9,1.55746]
[1754311977746,23.2811,3569.0,3568.9,1.55746]
[1754311977950,3.9721,3569.0,3568.9,1.77276]
[1754311978151,23.2851,3569.0,3568.9,1.77276]
[1754311978352,3.9721,3569.0,3568.9,1.77276]
[1754311978552,22.8098,3569.0,3568.9,1.77276]
[1754311979250,23.2801,3569.0,3568.9,1.77276]
[1754311979651,22.8088,3569.0,3568.9,1.77276]
[1754311980150,22.5158,3569.0,3568.9,1.77276]
[1754311980654,3.2078,3569.0,3568.9,1.77276]
[1754311980854,22.5128,3569.0,3568.9,1.77276]
[1754311981956,22.5068,3569.0,3568.9,1.77276]
[1754311982659,0.7643,3569.3,3569.2,0.56031]
[1754311982856,20.0623,3569.3,3569.2,1.77271]
[1754311983362,0.293,3569.3,3569.2,1.77271]
[1754311983549,3.2078,3569.4,3569.3,0.9971]
[1754311983754,23.2671,3569.4,3569.3,1.2124]
[1754311985163,23.8414,3569.4,3569.3,1.2124]
[1754311987258,23.6773,3569.4,3569.3,1.2124]
[1754311988153,23.6773,3569.4,3569.3,0.9971]
[1754311988355,23.8414,3569.4,3569.3,0.9971]
[1754311989856,23.8214,3569.4,3569.3,0.9971]
[1754311990055,23.8214,3569.4,3569.3,0.4932]
[1754311990266,23.9514,3569.4,3569.3,0.2974]
[1754311990966,23.8214,3569.4,3569.3,0.5094]
[1754311991160,1.4378,3569.3,3569.2,0.56031]
[1754311992066,1.4378,3569.3,3569.2,0.87611]
[1754311995870,1.3078,3569.3,3569.2,1.58801]
[1754311996066,20.5708,3569.3,3569.2,1.58801]
[1754311996567,20.7009,3569.3,3569.2,0.3158]
[1754311997163,20.5708,3569.3,3569.2,0.3158]
[1754311997361,20.7009,3569.3,3569.2,0.3158]
[1754311997869,19.9957,3569.3,3569.2,1.0277]
[1754311998171,20.1952,3569.3,3569.2,1.2429]
[1754311998368,20.4067,3569.3,3569.2,1.2429]
[1754311998568,20.5708,3569.3,3569.2,1.2429]
[1754311999163,20.5708,3569.3,3569.2,1.1105]
[1754311999470,20.5708,3569.3,3569.2,1.0277]
[1754311999670,0.4377,3569.2,3569.1,0.56032]
[1754311999970,1.4379,3569.2,3569.1,0.56032]
[1754312000369,1.4379,3569.2,3569.1,0.87612]
[1754312000771,1.4379,3569.2,3569.1,1.58802]
[1754312001769,1.3078,3569.2,3569.1,1.67082]
[1754312001970,1.1437,3569.2,3569.1,1.80322]
[1754312002172,0.7327,3569.2,3569.1,1.80322]
[1754312002672,0.9322,3569.2,3569.1,1.80322]
[1754312003077,1.0963,3569.2,3569.1,1.80322]
[1754312003370,1.3078,3569.2,3569.1,1.80322]
[1754312003770,1.3078,3569.2,3569.1,0.87612]
[1754312003974,1.3078,3569.2,3569.1,1.67082]
[1754312004274,1.45802022,3569.2,3569.1,1.67082]
[1754312004973,1.29392022,3569.2,3569.1,1.80322]
[1754312005173,0.88292022,3569.2,3569.1,1.80322]
[1754312005471,1.62739397,3569.2,3569.1,1.80322]
[1754312007074,2.20249397,3569.2,3569.1,1.1105]
[1754312007372,2.20249397,3569.2,3569.1,1.0277]
[1754312008776,2.20249397,3569.2,3568.4,1.40109]
[1754312008777,0.295,3568.6,3568.5,1.59132]
[1754312009069,0.5065,3568.4,3568.3,0.3158]
[1754312009272,0.5065,3568.4,3568.0,0.0828]
[1754312009273,0.706,3567.9,3567.8,1.0277]
[1754312009463,20.5418,3567.9,3567.8,1.2429]
[1754312009775,20.3777,3567.9,3567.8,1.2429]
[1754312010569,20.5418,3567.9,3567.8,1.2429]
[1754312010877,20.3777,3567.9,3567.8,1.2429]
[1754312012076,19.9667,3567.9,3567.8,1.2429]
[1754312012372,19.529,3567.9,3567.8,1.2429]
[1754312012578,19.234,3567.9,3567.8,1.2429]
[1754312012875,0.56049,3568.1,3568.0,0.5457]
[1754312013076,19.79549,3568.1,3568.0,1.2429]
[1754312013276,19.231,3568.1,3568.0,0.5457]
[1754312013983,0.56046,3568.3,3568.0,1.2429]
[1754312014169,19.231,3568.2,3568.0,0.5457]
[1754312014375,19.9637,3568.2,3568.1,0.6285]
[1754312014675,19.9637,3568.2,3568.1,1.2429]
[1754312015068,20.1632,3568.2,3568.1,1.2429]
[1754312015266,1.1437,3568.2,3568.1,1.2429]
[1754312015474,20.3717,3568.2,3568.1,1.2429]
[1754312015869,20.5358,3568.2,3568.1,1.0277]
[1754312016267,20.6659,3568.2,3568.1,0.3158]
[1754312016476,1.70427,3567.6,3567.5,1.2429]
[1754312016671,21.09637,3567.6,3567.5,1.2429]
[1754312017274,21.09637,3567.6,3567.5,0.3158]
[1754312017473,21.09637,3567.6,3567.5,1.0277]
[1754312017673,21.09637,3567.6,3567.5,0.5278]
[1754312017879,21.09637,3567.6,3567.5,1.0277]
[1754312018678,21.09637,3567.6,3567.5,0.3158]
[1754312018974,1.43073,3567.2,3567.1,1.0277]
[1754312019178,20.1071,3567.2,3567.1,1.2429]
[1754312019478,20.53032,3567.2,3567.1,1.2429]
[1754312020171,21.09732,3567.2,3567.1,1.0277]
[1754312020375,20.5367,3567.2,3567.1,1.80484]
[1754312020677,19.9697,3567.2,3567.1,1.80484]
[1754312021077,19.9697,3567.2,3567.1,1.0277]
[1754312021278,20.5458,3567.2,3567.1,1.111]
[1754312021667,20.5458,3567.2,3567.1,1.0277]
[1754312021872,20.5458,3567.2,3567.1,1.2442]
[1754312022074,20.3814,3567.2,3567.1,1.2442]
[1754312022270,0.56068,3566.9,3566.8,0.3193]
[1754312022580,20.29948,3566.9,3566.8,1.249]
[1754312022778,20.66698,3566.9,3566.8,1.0325]
[1754312022979,19.5302,3566.9,3566.8,1.249]
[1754312023179,19.234,3566.9,3566.8,1.249]
[1754312024676,0.4496,3567.2,3567.1,0.96004]
[1754312024883,19.248,3567.2,3567.1,1.80964]
[1754312025281,0.7458,3567.4,3567.3,1.80961]
[1754312025683,19.9918,3567.4,3567.3,1.80961]
[1754312025981,3.2078,3567.6,3567.5,1.67638]
[1754312026180,23.1986,3567.6,3567.5,1.80958]
[1754312026973,23.1966,3567.6,3567.5,1.80958]
[1754312028377,19.9888,3567.6,3567.5,1.80958]
[1754312029281,20.1974,3567.6,3567.5,1.80958]
[1754312029783,20.4005,3567.6,3567.5,1.80958]
[1754312029987,20.5649,3567.6,3567.5,1.80958]
[1754312030883,19.9888,3567.6,3567.5,1.80958]
[1754312032287,4.3653,3568.0,3567.9,1.72621]
[1754312032488,23.91271282,3568.0,3567.9,1.80951]
[1754312032880,23.91271282,3568.0,3567.5,0.3138]
[1754312033182,1.4523,3567.7,3567.6,0.3193]
[1754312033381,20.6833,3567.7,3567.6,1.0325]
[1754312033582,20.5529,3567.7,3567.6,1.0325]
[1754312033988,20.5529,3567.7,3567.6,1.59305]
[1754312035089,20.5529,3567.7,3567.6,1.67635]
[1754312035989,20.5529,3567.7,3567.6,1.59305]
[1754312036883,20.5529,3567.7,3567.6,1.67635]
[1754312037489,20.3885,3567.7,3567.6,1.80955]
[1754312038292,20.5529,3567.7,3567.6,1.80955]
[1754312039186,20.3885,3567.7,3567.6,1.80955]
[1754312039992,0.7458,3567.9,3567.8,1.72623]
[1754312040182,20.1123179,3567.9,3567.8,1.80953]
[1754312040388,20.6884179,3567.9,3567.8,1.80953]
[1754312041395,21.43355622,3567.9,3567.8,1.80953]
[1754312041594,2.21655622,3567.9,3567.8,1.80953]
[1754312041988,21.42955622,3567.9,3567.8,1.80953]
[1754312044903,2.21655622,3567.9,3567.8,1.80953]
[1754312045105,21.42355622,3567.9,3567.8,1.80953]
[1754312045907,21.42365268,3567.9,3567.8,1.80953]
[1754312046506,21.42414632,3567.9,3567.8,1.80953]
[1754312046704,21.25974632,3567.9,3567.8,1.80953]
[1754312046909,21.25274632,3567.9,3567.8,1.80953]
[1754312047204,21.25279348,3567.9,3567.8,1.80953]
[1754312047606,2.05279348,3567.9,3567.8,1.80953]
[1754312047809,21.25279348,3567.9,3567.8,1.80953]
[1754312049213,1.64109348,3567.9,3567.8,1.80953]
[1754312049409,20.83509348,3567.9,3567.8,1.80953]
[1754312050705,19.63686152,3567.9,3567.8,1.80953]
[1754312050910,20.09406152,3567.9,3567.8,1.80953]
[1754312051106,0.7534,3567.9,3567.8,1.80953]
[1754312051310,19.9434,3567.9,3567.8,1.80953]
[1754312051511,19.19,3567.9,3567.8,1.80953]
[1754312052816,19.19,3567.9,3567.8,5.01733]
[1754312055415,19.6472,3567.9,3567.8,5.01733]
[1754312055616,19.9568,3567.9,3567.8,5.01733]
[1754312056415,20.5404,3567.9,3567.8,5.01733]
[1754312056611,20.5404,3567.9,3567.8,4.28113]
[1754312056821,20.6706,3567.9,3567.8,3.76833]
[1754312057022,20.6706,3567.9,3567.8,4.07043]
[1754312057518,20.6706,3567.9,3567.8,4.36683]
[1754312057923,19.19,3567.9,3567.8,4.36683]
[1754312058116,20.5404,3567.9,3567.8,4.99383]
[1754312058422,1.1862,3567.9,3567.8,4.99383]
[1754312058719,19.9538,3567.9,3567.8,4.99383]
[1754312059818,20.161,3567.9,3567.8,4.99383]
[1754312060122,20.5374,3567.9,3567.8,4.99383]
[1754312062523,20.3732,3567.9,3567.8,4.99383]
[1754312062722,0.7668,3567.9,3567.8,4.99383]
[1754312062925,19.9458,3567.9,3567.8,4.99383]
[1754312064029,19.4886,3567.9,3567.8,4.99383]
[1754312064423,19.9458,3567.9,3567.8,4.99383]
[1754312065328,0.3096,3567.9,3567.8,4.99383]
[1754312065528,0.7668,3568.2,3568.1,1.78598]
[1754312065725,19.9408,3568.2,3568.1,1.78598]
[1754312066423,20.5244,3568.2,3568.1,1.57018]
[1754312068628,20.5244,3568.2,3568.1,1.65318]
[1754312072234,20.5244,3568.2,3568.1,1.78598]
[1754312072235,19.174,3568.2,3568.1,1.78598]
[1754312072430,0.56046,3568.3,3568.1,1.78598]
[1754312072632,19.161,3568.2,3568.1,1.10448]
[1754312072833,19.4706,3568.2,3568.1,1.10448]
[1754312073034,19.9278,3568.2,3568.1,1.10448]
[1754312073236,19.9278,3568.2,3568.1,1.78598]
[1754312073435,19.4706,3568.2,3568.1,1.78598]
[1754312073635,0.7668,3568.2,3568.1,1.78598]
[1754312073839,19.9278,3568.2,3568.1,1.78598]
[1754312074237,0.7668,3568.2,3568.1,1.78598]
[1754312074434,20.135,3568.2,3568.1,1.78598]
[1754312074935,20.5114,3568.2,3568.1,1.78598]
[1754312075441,20.5114,3568.2,3568.1,1.57018]
[1754312075934,20.5114,3568.2,3567.8,4.60913]
[1754312075935,1.14791,3568.0,3567.8,3.5042]
[1754312076142,1.4806,3567.8,3567.7,1.06244]
[1754312076345,20.5114,3567.8,3567.7,1.57024]
[1754312077835,20.5114,3567.8,3567.7,0.3021]
[1754312078030,20.6416,3567.8,3567.7,0.86265]
[1754312078541,20.6416,3567.8,3567.7,0.3021]
[1754312080944,0.8754,3567.3,3567.2,3.4993]
[1754312081146,20.6422,3567.3,3567.2,3.8053]
[1754312081348,20.6422,3567.3,3567.2,4.36592]
[1754312082846,20.6422,3567.3,3567.2,0.85212]
[1754312083549,20.6422,3567.3,3567.2,1.15812]
[1754312083958,20.6422,3567.3,3567.2,0.85212]
[1754312084648,20.6422,3567.3,3567.2,1.57782]
[1754312085351,20.5118,3567.3,3567.2,1.57782]
[1754312089149,20.5118,3567.3,3567.2,0.2915]
[1754312089453,20.6422,3567.3,3567.2,0.2915]
[1754312091252,20.5118,3567.3,3567.2,1.0172]
[1754312091851,20.5118,3567.3,3567.2,1.4932]
[1754312093652,20.5118,3567.3,3567.2,1.0172]
[1754312093852,20.6422,3567.3,3567.2,0.2915]
[1754312094052,0.56067,3566.9,3566.7,0.5607]
[1754312094350,20.5148,3566.8,3566.7,0.9804]
[1754312094751,20.5148,3566.8,3566.7,2.0539]
[1754312095147,20.5148,3566.8,3566.7,2.3686]
[1754312095354,2.0419,3566.7,3566.6,0.56071]
[1754312095554,2.0419,3566.7,3566.6,1.06591]
[1754312095754,1.9115,3566.7,3566.6,1.57791]
[1754312096351,1.3508,3566.7,3566.6,1.57791]
[1754312096556,1.3508,3566.7,3566.6,2.05391]
[1754312096758,1.3508,3566.7,3566.6,1.57791]
[1754312097455,1.3508,3566.7,3566.6,2.36861]
[1754312097657,1.1864,3566.7,3566.6,2.36861]
[1754312097960,0.7769,3566.7,3566.6,2.36861]
[1754312098159,1.74706,3567.0,3566.9,1.29507]
[1754312098364,20.91206,3567.0,3566.9,2.36857]
[1754312098958,20.5158,3567.0,3566.9,2.36857]
[1754312100360,1.1423,3566.7,3566.6,0.2915]
[1754312100564,0.201,3566.4,3566.2,0.56078]
[1754312100762,0.5739,3566.2,3566.1,3.98229]
[1754312100960,20.6462,3566.2,3566.1,3.76859]
[1754312101156,20.6462,3566.2,3566.0,0.5608]
[1754312101362,0.9779,3566.1,3566.0,1.2865]
[1754312101561,1.3508,3566.1,3566.0,1.2865]
[1754312101855,1.3508,3566.1,3566.0,0.7257]
[1754312102060,1.3508,3566.1,3566.0,0.5052]
[1754312102457,1.3508,3566.1,3566.0,0.2915]
[1754312102657,1.4812,3566.1,3566.0,0.2915]
[1754312102962,1.3508,3566.1,3566.0,1.0172]
[1754312103168,1.1864,3566.1,3566.0,1.8079]
[1754312103466,1.3508,3566.1,3566.0,1.8079]
[1754312103764,0.7769,3566.1,3566.0,1.8079]
[1754312103960,19.9429,3566.1,3566.0,1.8079]
[1754312104161,3.5093,3566.4,3566.3,0.4197]
[1754312104367,23.5602,3566.4,3566.3,1.89267]
[1754312104569,23.7246,3566.4,3566.3,1.0172]
[1754312105166,3.2078,3566.4,3566.3,1.8079]
[1754312105470,20.6472,3566.4,3566.3,0.5975]
[1754312105663,20.5168,3566.4,3566.3,1.0172]
[1754312106063,20.5168,3566.4,3566.3,1.4932]
[1754312106669,20.3524,3566.4,3566.3,1.8079]
[1754312106862,1.1864,3566.4,3566.3,1.8079]
[1754312107066,19.4685,3566.4,3566.3,1.8079]
[1754312107269,4.1857,3566.8,3566.7,0.7344]
[1754312107465,22.3748,3566.8,3566.7,2.3686]
[1754312108169,19.168,3566.8,3566.7,2.3686]
[1754312108768,0.7769,3567.1,3567.0,2.36856]
[1754312108973,20.68878038,3567.1,3567.0,2.36856]
[1754312109580,20.68778038,3567.1,3567.0,2.36856]
[1754312109771,20.68678038,3567.1,3567.0,2.36856]
[1754312110673,19.90988038,3567.1,3567.0,2.36856]
[1754312111277,19.167,3567.1,3567.0,2.36856]
[1754312111569,43.5828,3567.2,3567.0,1.77106]
[1754312111774,40.375,3567.2,3567.1,1.1795]
[1754312111980,59.542,3567.2,3567.1,4.9956]
[1754312112673,19.167,3567.2,3567.1,4.9956]
[1754312113775,19.9256,3567.2,3567.1,4.9956]
[1754312113978,20.493,3567.2,3567.1,4.9956]
[1754312114170,20.3298,3567.2,3567.1,4.9956]
[1754312114371,19.9256,3567.2,3567.1,4.9956]
[1754312115674,20.6228,3567.2,3567.1,3.4968]
[1754312116181,20.6228,3567.2,3567.1,0.289]
[1754312117275,1.4558,3567.1,3567.0,0.84964]
[1754312117478,19.167,3567.2,3566.6,0.84972]
[1754312117479,0.7183,3566.7,3566.6,0.84972]
[1754312117680,20.6218,3566.7,3566.6,0.84972]
[1754312118069,20.6218,3566.7,3566.6,1.16902]
[1754312118280,20.492,3566.7,3566.6,1.57762]
[1754312118476,20.492,3566.7,3566.6,2.04322]
[1754312119085,20.492,3566.7,3566.6,2.34852]
[1754312120273,20.492,3566.7,3566.6,0.56072]
[1754312120479,20.6218,3566.7,3566.6,0.84972]
[1754312120680,20.3288,3566.7,3566.6,0.84972]
[1754312120974,20.3288,3566.7,3566.6,2.34852]
[1754312121179,20.492,3566.7,3566.5,0.56072]
[1754312121378,1.326,3566.6,3566.5,0.96932]
[1754312121580,1.326,3566.6,3566.5,1.43492]
[1754312121776,0.3141,3566.6,3566.5,2.02922]
[1754312121975,4.64997,3567.0,3566.9,1.0169]
[1754312122177,23.81797,3567.0,3566.9,1.0169]
[1754312122379,24.39227,3567.0,3566.9,0.289]
[1754312122576,0.5607,3566.8,3566.6,0.88001]
[1754312122777,1.88672,3566.6,3566.5,0.56072]
[1754312122974,20.493,3566.6,3566.5,0.56072]
[1754312123172,20.493,3566.6,3566.5,1.57762]
[1754312123384,20.493,3566.6,3566.5,2.34852]
[1754312124175,20.493,3566.6,3566.5,1.88292]
[1754312124372,20.6228,3566.6,3566.5,0.289]
[1754312124782,20.6228,3566.6,3566.5,0.6083]
[1754312125082,20.6228,3566.6,3566.5,0.289]
[1754312125678,20.6228,3566.6,3566.5,0.6083]
[1754312125880,3.9664,3567.0,3566.9,0.7139]
[1754312126081,23.28539601,3567.0,3566.9,2.34847]
[1754312126281,23.47949601,3567.0,3566.9,2.34847]
[1754312126478,20.07759601,3567.0,3566.9,2.34847]
[1754312126673,19.9246,3567.0,3566.9,2.34847]
[1754312126877,19.4801,3567.0,3566.9,2.34847]
[1754312127280,20.1187,3567.0,3566.9,2.34847]
[1754312127481,20.1187,3567.0,3566.9,0.289]
[1754312127482,20.6218,3567.0,3566.9,0.289]
[1754312127685,21.36650688,3567.0,3566.9,0.289]
[1754312128581,23.6998,3567.0,3566.9,0.6083]
[1754312128886,24.28131152,3567.0,3566.9,1.0169]
[1754312129087,24.28131152,3567.0,3566.9,1.3222]
[1754312129286,24.44451152,3567.0,3566.9,1.7878]
[1754312129487,24.44451152,3567.0,3566.9,1.3222]
[1754312129795,24.44451152,3567.0,3566.9,1.0169]
[1754312130284,24.57431152,3567.0,3566.9,1.0169]
[1754312131186,0.7183,3566.8,3566.7,0.289]
[1754312131490,20.6218,3566.8,3566.7,0.289]
[1754312132183,21.36660906,3566.8,3566.7,0.289]
[1754312132484,1.88787,3566.3,3566.2,0.7279]
[1754312132686,21.05487,3566.3,3566.2,0.7279]
[1754312132890,21.05487,3566.3,3566.2,1.0169]
[1754312133898,1.117,3566.1,3566.0,0.8111]
[1754312134079,20.4931,3566.1,3566.0,1.0169]
[1754312134483,1.88791,3566.0,3565.9,1.3222]
[1754312134783,1.88791,3566.0,3565.9,1.7878]
[1754312135581,1.88791,3566.0,3565.9,0.8111]
[1754312135787,1.88791,3566.0,3565.9,1.0169]
[1754312136491,1.88791,3566.0,3565.9,1.4825]
[1754312137794,1.88791,3566.0,3565.9,1.0169]
[1754312138795,1.72361,3566.0,3565.9,1.0169]
[1754312138996,2.01821,3566.0,3565.9,1.0169]
[1754312139198,20.56803,3566.1,3565.1,1.0739]
[1754312139501,0.4445,3565.5,3565.2,0.56093]
[1754312139790,1.3271,3565.5,3565.4,1.7878]
[1754312140096,20.5081,3565.5,3565.4,1.7878]